bitfinex/quotes_ETHUSD_20230111
["timestamp","ask_amount","ask_price","bid_price","bid_amount"]
[1673460931518,14.90312,1342.0,1341.8,44.49246511]
[1673460931703,20.46778064,1342.0,1341.8,44.49246511]
[1673460931958,14.69795518,1342.0,1341.8,44.49246511]
[1673460932168,8.07636,1342.1,1341.8,44.49246511]
[1673460932169,14.90424,1341.9,1341.8,44.49246511]
[1673460932666,7.51757,1342.0,1341.8,44.49246511]
[1673460932876,14.90313,1342.0,1341.8,44.49246511]
[1673460933211,14.90312,1342.0,1341.8,44.49246511]
[1673460933442,1.768,1341.9,1341.8,0.099]
[1673460933632,1.768,1341.9,1341.7,3.94453668]
[1673460933633,27.92202064,1341.9,1341.7,3.94453668]
[1673460933842,26.15402064,1341.9,1341.7,3.94453668]
[1673460934282,3.79766064,1341.8,1341.7,3.94453668]
[1673460934499,22.79410064,1341.8,1341.6,0.11772174]
[1673460934821,22.7485307,1341.7,1341.5,0.23648356]
[1673460934979,18.70522064,1341.6,1341.2,44.48646511]
[1673460935191,7.45489,1341.4,1341.2,44.48646511]
[1673460935403,7.46489,1341.4,1341.2,44.48646511]
[1673460935634,18.71744064,1341.4,1341.2,0.093]
[1673460935821,7.45612,1341.2,1340.9,0.02666142]
[1673460936033,7.46612,1341.2,1340.9,0.02666142]
[1673460936278,0.01,1341.2,1340.9,0.02666142]
[1673460936505,9.38333406,1341.3,1340.9,0.02666142]
[1673460936506,16.79321406,1341.3,1340.9,0.02666142]
[1673460936658,0.01,1341.3,1341.1,0.02666142]
[1673460936873,0.5592,1341.5,1341.1,7.48296142]
[1673460937085,0.5592,1341.5,1341.1,7.57596142]
[1673460937346,8.01358,1341.5,1341.1,0.11966142]
[1673460937504,8.02358,1341.5,1341.1,0.02666142]
[1673460937713,26.81921064,1341.5,1341.1,0.02666142]
[1673460938134,33.71439064,1341.5,1341.1,0.02666142]
[1673460938345,3.0,1341.4,1341.1,0.02666142]
[1673460938609,22.36635,1341.3,1341.1,0.02666142]
[1673460938763,22.37635,1341.3,1341.1,0.02666142]
[1673460939215,0.01,1341.3,1341.1,0.02666142]
[1673460939431,0.01,1341.4,1341.1,0.02666142]
[1673460939623,7.45473,1341.5,1341.0,22.44024142]
[1673460939848,14.91948,1341.5,1341.0,0.093]
[1673460940062,28.15957664,1341.5,1340.9,4.88666142]
[1673460940396,7.45553,1341.3,1340.9,0.02666142]
[1673460940706,20.48664064,1341.3,1340.9,0.02666142]
[1673460940925,1.768,1341.2,1340.9,0.02666142]
[1673460941079,7.63336,1341.1,1340.9,0.02666142]
[1673460941288,13.90490328,1341.1,1340.9,0.02666142]
[1673460941545,6.44834328,1341.1,1340.9,0.02666142]
[1673460942075,7.68334328,1341.1,1340.9,0.02666142]
[1673460942441,16.95946461,1341.1,1340.9,0.02666142]
[1673460942652,18.72746461,1341.1,1340.9,0.02666142]
[1673460942970,5.56566064,1341.0,1340.9,0.02666142]
[1673460943212,27.94702064,1341.0,1340.9,0.02666142]
[1673460943547,24.14936,1341.0,1340.5,1.3008949]
[1673460943761,33.63102064,1340.8,1340.5,1.3008949]
[1673460943916,7.4599,1340.5,1340.4,0.03034085]
[1673460944124,20.49546064,1340.5,1340.4,0.03034085]
[1673460944387,20.35440064,1340.5,1340.4,0.03034085]
[1673460944598,27.81430064,1340.5,1340.4,0.03034085]
[1673460944755,30.6013307,1340.5,1340.4,0.03034085]
[1673460946155,23.7010307,1340.5,1340.4,0.03034085]
[1673460946330,16.2411307,1340.5,1340.4,0.03034085]
[1673460946543,0.5696,1340.5,1340.4,0.03034085]
[1673460946750,10.52515,1340.7,1340.5,0.8529883]
[1673460947015,7.45957,1340.6,1340.5,0.8529883]
[1673460947261,14.92927,1340.6,1340.5,0.8529883]
[1673460948026,18.72693064,1340.6,1340.5,0.8529883]
[1673460948237,17.85347806,1340.6,1340.5,0.8529883]
[1673460948797,0.01,1340.6,1340.5,0.8529883]
[1673460949024,15.05337,1340.8,1340.5,0.8529883]
[1673460949169,7.595,1340.8,1340.5,0.8529883]
[1673460949377,29.96995,1340.8,1340.5,0.8529883]
[1673460949639,3.79766064,1340.7,1340.5,0.8529883]
[1673460949796,7.45934,1340.6,1340.5,0.8529883]
[1673460950008,0.01,1340.6,1340.5,0.8529883]
[1673460950253,7.45934,1340.6,1340.5,0.8529883]
[1673460950468,7.46934,1340.6,1340.5,0.8529883]
[1673460951029,14.92868,1340.6,1340.5,0.8529883]
[1673460951540,22.38802,1340.6,1340.5,0.8529883]
[1673460951913,19.30380731,1340.6,1340.5,0.8529883]
[1673460952126,0.066,1340.7,1340.5,0.8529883]
[1673460952333,22.50232,1340.8,1340.5,0.8529883]
[1673460952548,7.585,1340.8,1340.5,15.7727883]
[1673460952741,7.585,1340.8,1340.5,0.9459883]
[1673460952987,15.04326,1340.8,1340.5,0.8529883]
[1673460953162,22.50152,1340.8,1340.5,0.8529883]
[1673460953612,7.585,1340.8,1340.5,0.8529883]
[1673460954031,29.95987,1340.8,1340.5,0.8529883]
[1673460954375,37.50588864,1340.8,1340.5,0.8529883]
[1673460954592,39.83338864,1340.8,1340.5,0.8529883]
[1673460954900,3.0,1340.7,1340.5,0.8529883]
[1673460955093,14.91868,1340.6,1340.5,0.8529883]
[1673460955628,7.45934,1340.6,1340.5,0.8529883]
[1673460956363,0.066,1340.7,1340.5,8.3128883]
[1673460956537,23.06145,1340.8,1340.5,0.9459883]
[1673460956731,30.52015,1340.8,1340.5,1.43828241]
[1673460958224,3.0,1340.7,1340.5,1.43828241]
[1673460958429,10.97129884,1340.6,1340.5,1.43828241]
[1673460958679,3.51195884,1340.6,1340.5,1.43828241]
[1673460959069,0.066,1340.7,1340.6,4.93407006]
[1673460959276,7.585,1340.8,1340.6,4.93407006]
[1673460959630,7.585,1340.8,1340.6,19.85217006]
[1673460959934,7.585,1340.8,1340.6,19.94530006]
[1673460960094,7.585,1340.8,1340.6,12.48596006]
[1673460960307,7.585,1340.8,1340.6,5.02707006]
[1673460960514,15.04323,1340.8,1340.6,5.02707006]
[1673460961088,29.95969,1340.8,1340.6,5.02707006]
[1673460961674,33.75735064,1340.8,1340.6,5.02707006]
[1673460962005,26.17403064,1340.7,1340.6,5.02707006]
[1673460962222,26.73353064,1340.7,1340.6,5.02707006]
[1673460962431,29.73353064,1340.7,1340.6,5.02707006]
[1673460962639,34.2178067,1340.7,1340.6,5.02707006]
[1673460962832,34.2178067,1340.7,1340.6,2.99607006]
[1673460963040,3.0,1340.6,1340.5,1.48128241]
[1673460963288,32.8396,1340.5,1340.4,0.03034085]
[1673460963503,37.25886064,1340.5,1340.4,0.03034085]
[1673460963727,41.2851467,1340.5,1340.4,0.03034085]
[1673460963879,45.9341467,1340.5,1340.4,8.5e-07]
[1673460964088,45.9341467,1340.5,1340.1,0.02629874]
[1673460964304,3.79766064,1340.4,1340.1,0.02629874]
[1673460964554,26.18069064,1340.3,1340.1,0.02629874]
[1673460964767,6.4157297,1340.2,1340.1,0.02629874]
[1673460964940,28.8624397,1340.2,1340.1,0.02629874]
[1673460965164,28.8624397,1340.2,1339.8,0.03561543]
[1673460965165,29.6139411,1340.2,1339.8,0.03561543]
[1673460965368,4.675,1339.9,1339.7,0.00236531]
[1673460965582,22.3914,1339.8,1339.7,0.00236531]
[1673460965895,14.9896,1339.8,1339.7,0.00236531]
[1673460966298,7.5258,1339.8,1339.7,0.00236531]
[1673460966509,13.9489417,1339.8,1339.7,0.00236531]
[1673460966957,21.4127417,1339.8,1339.7,0.00236531]
[1673460967376,13.9489417,1339.8,1339.7,0.00236531]
[1673460967591,7.5258,1339.8,1339.7,0.00236531]
[1673460967807,7.5258,1339.8,1339.7,1.35273301]
[1673460968031,0.062,1339.8,1339.7,1.35273301]
[1673460968243,7.46343,1339.9,1339.7,1.35273301]
[1673460968400,10.97797819,1339.8,1339.7,1.35273301]
[1673460968612,0.062,1339.8,1339.7,1.35273301]
[1673460968826,0.062,1339.9,1339.8,1.62941807]
[1673460969032,14.92659,1339.9,1339.8,0.10141807]
[1673460969277,14.98859,1339.9,1339.8,0.10141807]
[1673460969492,9.03924,1339.9,1339.8,0.10141807]
[1673460969775,29.41400964,1339.9,1339.8,1.45178577]
[1673460971524,34.63090964,1339.9,1339.8,1.45178577]
[1673460971840,42.34613924,1339.9,1339.8,1.45178577]
[1673460971996,35.6558133,1339.9,1339.8,1.45178577]
[1673460972202,40.34318894,1339.9,1339.8,1.45178577]
[1673460972663,35.6558133,1339.9,1339.8,1.45178577]
[1673460972998,23.38574848,1339.9,1339.8,1.45178577]
[1673460973151,22.82584848,1339.9,1339.8,1.45178577]
[1673460973570,22.82784848,1339.9,1339.8,1.45178577]
[1673460973832,22.82584848,1339.9,1339.8,1.45178577]
[1673460974363,22.82584848,1339.9,1339.6,2.75e-06]
[1673460974364,3.0,1339.8,1339.6,2.75e-06]
[1673460974572,26.19071064,1339.7,1339.6,2.75e-06]
[1673460974899,18.72636064,1339.7,1339.6,2.75e-06]
[1673460975256,7.46435,1339.7,1339.6,2.75e-06]
[1673460975463,14.99438,1339.8,1339.6,2.75e-06]
[1673460975671,26.19013064,1339.8,1339.6,2.75e-06]
[1673460975883,33.3479647,1339.8,1339.6,2.75e-06]
[1673460977098,25.8836947,1339.8,1339.6,2.75e-06]
[1673460977395,18.72586064,1339.8,1339.6,2.75e-06]
[1673460977646,18.72584064,1339.8,1339.6,2.75e-06]
[1673460978500,30.6259,1339.9,1339.6,7.46479275]
[1673460978707,30.6259,1339.9,1339.6,22.46261275]
[1673460978708,30.0,1339.9,1339.6,22.46261275]
[1673460979011,26.05053607,1339.9,1339.6,22.46261275]
[1673460979221,26.05053607,1339.9,1339.7,0.23]
[1673460979535,26.05053607,1339.9,1339.8,14.9276]
[1673460979708,26.05053607,1339.9,1339.8,7.7618]
[1673460979918,26.05053607,1339.9,1339.8,0.298]
[1673460980144,26.05053607,1339.9,1339.7,14.92858]
[1673460980334,26.05053607,1339.9,1339.7,14.99658]
[1673460980969,26.05053607,1339.9,1339.7,22.46093]
[1673460981507,26.05053607,1339.9,1339.8,26.00054354]
[1673460981695,21.11423689,1339.9,1339.8,26.06854354]
[1673460982266,21.11423689,1339.9,1339.8,29.86620418]
[1673460982641,21.11423689,1339.9,1339.8,3.67714354]
[1673460982846,21.11423689,1339.9,1339.8,18.30674354]
[1673460983087,21.11423689,1339.9,1339.8,0.068]
[1673460983296,21.11423689,1339.9,1339.8,22.3914]
[1673460983631,21.11423689,1339.9,1339.8,7.7618]
[1673460983796,21.11423689,1339.9,1339.8,0.298]
[1673460984002,21.11423689,1339.9,1339.8,7.6938]
[1673460984232,21.11423689,1339.9,1339.8,0.068]
[1673460984421,7.52871,1340.0,1339.6,16.08259607]
[1673460984631,32.67174782,1340.0,1339.6,0.06800275]
[1673460984886,2.320192,1340.0,1339.6,7.46490275]
[1673460985099,3.0,1339.9,1339.6,0.06800275]
[1673460985257,3.0,1339.9,1339.6,2.75e-06]
[1673460985258,3.79766064,1339.8,1339.6,2.75e-06]
[1673460985693,26.18908064,1339.8,1339.6,2.75e-06]
[1673460986042,2.61890806,1339.7,1339.6,2.75e-06]
[1673460986572,26.25553064,1339.8,1339.6,2.75e-06]
[1673460986737,26.18953064,1339.8,1339.6,2.75e-06]
[1673460987098,2.674,1339.9,1339.6,2.75e-06]
[1673460987263,16.86895064,1339.9,1339.6,2.75e-06]
[1673460987623,31.79553064,1339.9,1339.6,2.75e-06]
[1673460987779,3.73945306,1339.8,1339.6,7.46478275]
[1673460987990,6.40566064,1339.9,1339.8,2.40259296]
[1673460987991,3.86366064,1339.9,1339.8,2.40259296]
[1673460988253,11.26107064,1339.9,1339.8,2.40259296]
[1673460988461,18.72448064,1339.9,1339.8,2.40259296]
[1673460988653,3.79766064,1339.9,1339.8,2.40259296]
[1673460989052,18.72414064,1339.9,1339.8,2.40259296]
[1673460989269,35.66228424,1339.9,1339.8,2.40259296]
[1673460989478,3.0,1339.8,1339.6,2.75e-06]
[1673460989830,26.19071064,1339.7,1339.6,2.75e-06]
[1673460990196,30.89865998,1339.7,1339.6,2.75e-06]
[1673460990524,39.57216138,1339.7,1339.6,2.75e-06]
[1673460990742,10.922,1339.6,1339.5,8e-07]
[1673460990973,42.57842998,1339.6,1339.5,8e-07]
[1673460991193,43.32993138,1339.6,1339.5,8e-07]
[1673460992136,43.32993138,1339.6,1339.2,0.82515142]
[1673460992137,30.32006,1339.4,1339.2,0.82515142]
[1673460992352,30.32006,1339.4,1339.1,0.04834979]
[1673460992353,33.32342,1339.2,1339.1,0.04834979]
[1673460992549,14.93674,1339.0,1338.5,0.9887485]
[1673460992720,14.93674,1339.0,1338.5,3.9237485]
[1673460992721,3.79766064,1338.9,1338.5,3.9237485]
[1673460992931,7.53437,1339.0,1338.5,7.71840914]
[1673460993181,7.46837,1339.0,1338.6,1.90114342]
[1673460993394,3.79766064,1339.0,1338.5,4.0373085]
[1673460993722,14.93704,1339.0,1338.5,5.05442182]
[1673460993930,14.93704,1339.0,1338.6,1.8526101]
[1673460994247,18.73470064,1339.0,1338.5,4.0373085]
[1673460994399,18.73470064,1339.0,1338.5,3.9693085]
[1673460994612,11.26618064,1339.0,1338.5,3.9693085]
[1673460994823,11.26591064,1339.0,1338.5,11.4403385]
[1673460995036,11.26591064,1339.0,1338.5,11.5083385]
[1673460995248,18.73416064,1339.0,1338.5,4.0373085]
[1673460995457,3.79766064,1338.9,1338.5,11.3917885]
[1673460995668,3.79766064,1338.9,1338.5,8.4597885]
[1673460996011,18.28550064,1338.9,1338.5,0.9887485]
[1673460996232,25.75442064,1338.9,1338.5,0.9207485]
[1673460996661,3.79766064,1338.8,1338.5,0.9207485]
[1673460996854,11.26708064,1338.8,1338.5,0.9207485]
[1673460997047,26.20592064,1338.8,1338.5,0.9207485]
[1673460997253,3.79766064,1338.7,1338.5,0.9207485]
[1673460997502,3.71171106,1338.8,1338.7,0.15509371]
[1673460997728,14.93932,1338.8,1338.7,0.15509371]
[1673460997939,22.40811,1338.8,1338.7,0.15509371]
[1673460998253,15.49904,1338.8,1338.5,0.9207485]
[1673460998413,8.03053,1338.7,1338.5,0.9207485]
[1673460998623,15.50066,1338.7,1338.5,0.9207485]
[1673460998863,29.85278497,1338.7,1338.5,0.9207485]
[1673461000267,3.79766064,1338.6,1338.5,0.9207485]
[1673461000412,26.05512433,1338.7,1338.5,8.3917885]
[1673461000413,3.70873433,1338.7,1338.5,8.3917885]
[1673461000618,33.3273,1338.8,1338.5,0.9887485]
[1673461000619,30.6263,1338.8,1338.5,0.9887485]
[1673461000879,26.20777064,1338.7,1338.5,0.9207485]
[1673461001091,33.67802064,1338.7,1338.5,0.9207485]
[1673461001704,3.79766064,1338.6,1338.5,0.9207485]
[1673461001917,26.20913064,1338.6,1338.5,0.9207485]
[1673461002129,29.5836367,1338.6,1338.5,0.9207485]
[1673461003038,7.1721667,1338.6,1338.5,0.9207485]
[1673461003248,18.73864064,1338.6,1338.5,0.9207485]
[1673461003499,26.20913064,1338.6,1338.5,0.9207485]
[1673461003669,11.26815064,1338.6,1338.5,0.9207485]
[1673461003881,3.79766064,1338.6,1338.5,0.9207485]
[1673461004142,0.066,1338.7,1338.5,0.9207485]
[1673461004352,44.93927,1338.8,1338.6,2.96505496]
[1673461004673,41.26727064,1338.8,1338.6,2.96505496]
[1673461004982,43.35883918,1338.8,1338.6,2.96505496]
[1673461005137,30.0,1338.8,1338.6,2.96505496]
[1673461005989,37.46948,1338.8,1338.6,2.96505496]
[1673461006202,41.26714064,1338.8,1338.6,2.96505496]
[1673461006411,56.20588064,1338.8,1338.6,2.96505496]
[1673461006867,18.73752064,1338.7,1338.6,2.96505496]
[1673461007031,32.85737514,1338.7,1338.6,2.96505496]
[1673461007482,0.5604,1338.7,1338.6,2.96505496]
[1673461007693,30.066,1338.8,1338.6,2.96505496]
[1673461008037,37.46937,1338.8,1338.6,2.96505496]
[1673461008341,41.82733064,1338.8,1338.6,2.71505496]
[1673461008513,48.73640064,1338.8,1338.6,2.71505496]
[1673461008731,47.6971267,1338.8,1338.6,2.71505496]
[1673461008972,55.1664967,1338.8,1338.6,2.71505496]
[1673461009136,47.6971267,1338.8,1338.6,2.71505496]
[1673461009590,41.26703064,1338.8,1338.6,2.71505496]
[1673461009818,48.73640064,1338.8,1338.6,2.71505496]
[1673461010144,30.0,1338.8,1338.6,10.18554496]
[1673461010289,30.0,1338.8,1338.6,2.78305496]
[1673461010500,30.0,1338.8,1338.6,5.71505496]
[1673461010742,30.0,1338.8,1338.6,10.25338496]
[1673461010960,48.73665064,1338.8,1338.6,2.78305496]
[1673461011143,48.73665064,1338.8,1338.6,2.71505496]
[1673461011353,44.93899,1338.8,1338.6,2.71505496]
[1673461011700,18.73752064,1338.7,1338.6,2.71505496]
[1673461011913,11.26759064,1338.7,1338.6,2.71505496]
[1673461012291,18.73752064,1338.7,1338.6,2.71505496]
[1673461013069,26.20745064,1338.7,1338.6,2.71505496]
[1673461013596,26.76785064,1338.7,1338.6,2.71505496]
[1673461013919,11.89669615,1338.7,1338.6,2.71505496]
[1673461014101,26.83655615,1338.7,1338.6,2.71505496]
[1673461014857,34.30648615,1338.7,1338.6,2.71505496]
[1673461015610,26.83655615,1338.7,1338.6,2.71505496]
[1673461015766,30.066,1338.8,1338.6,2.71505496]
[1673461015973,30.0,1338.8,1338.6,2.71505496]
[1673461016181,3.79766064,1338.7,1338.6,2.71505496]
[1673461016448,33.86366064,1338.8,1338.6,2.71505496]
[1673461016653,30.0,1338.8,1338.6,2.71505496]
[1673461017864,30.0,1338.8,1338.6,10.18553496]
[1673461018181,30.0,1338.8,1338.7,1.758]
[1673461020549,30.0,1338.8,1338.7,30.16779]
[1673461020736,27.03540032,1338.8,1338.7,27.28431]
[1673461020912,27.03540032,1338.8,1338.7,27.23579]
[1673461021328,27.03540032,1338.8,1338.7,31.03345064]
[1673461021576,27.03540032,1338.8,1338.7,35.71345064]
[1673461021784,23.08299841,1338.8,1338.7,35.71345064]
[1673461023366,0.066,1338.9,1338.7,43.18338064]
[1673461023646,0.1628123,1339.5,1338.8,8.1607]
[1673461023647,0.7228123,1339.5,1338.8,8.1607]
[1673461023896,0.1628123,1339.5,1339.0,34.5638]
[1673461024064,0.1628123,1339.5,1339.1,4.02766064]
[1673461024277,0.1628123,1339.5,1339.2,22.40109]
[1673461024488,0.1628123,1339.5,1339.3,18.16247]
[1673461024728,0.1628123,1339.5,1339.3,25.69705]
[1673461025359,0.1628123,1339.5,1339.3,22.69705]
[1673461025692,0.1628123,1339.5,1339.3,0.068]
[1673461025850,0.1628123,1339.5,1339.2,7.53478]
[1673461026060,0.1628123,1339.5,1339.2,15.00183]
[1673461026325,0.1628123,1339.5,1339.2,15.00188]
[1673461027005,0.47909353,1339.5,1339.2,0.068]
[1673461027217,0.47909353,1339.5,1339.2,7.46712]
[1673461027473,0.47909353,1339.5,1339.2,0.068]
[1673461027696,7.94457353,1339.5,1339.1,25.46999]
[1673461028008,0.47909353,1339.5,1339.1,25.46999]
[1673461028165,0.1628123,1339.5,1339.1,29.26765064]
[1673461028379,0.1628123,1339.5,1339.2,7.02766064]
[1673461028583,0.1628123,1339.5,1339.3,22.39974]
[1673461028792,0.1628123,1339.5,1339.4,9.22402]
[1673461029003,0.1628123,1339.5,1339.4,7.76402]
[1673461029214,1.6768123,1339.5,1339.4,0.068]
[1673461029471,1.6768123,1339.5,1339.1,8.834]
[1673461029472,1.84449353,1339.5,1339.2,7.46709]
[1673461029643,1.84449353,1339.5,1339.2,22.46937]
[1673461029644,1.6768123,1339.5,1339.2,22.46937]
[1673461029856,9.1424823,1339.5,1339.2,0.068]
[1673461030062,9.1424823,1339.5,1339.1,18.00294]
[1673461030320,9.1424823,1339.5,1339.2,7.69711]
[1673461030321,9.1423923,1339.5,1339.2,7.69711]
[1673461030523,9.1423923,1339.5,1339.2,7.76511]
[1673461030733,24.0734423,1339.5,1339.2,0.298]
[1673461030984,30.64099817,1339.5,1339.0,0.068]
[1673461031147,30.64099817,1339.5,1338.9,0.5479945]
[1673461031356,3.0,1339.4,1338.9,0.4799945]
[1673461031603,22.4002,1339.3,1338.9,0.4799945]
[1673461031823,34.67410212,1339.3,1338.9,0.4799945]
[1673461032013,29.8642897,1339.3,1338.9,0.4799945]
[1673461032204,34.67410212,1339.3,1338.9,0.4799945]
[1673461032417,14.9354,1339.1,1338.9,0.4799945]
[1673461033269,3.79766064,1339.0,1338.6,0.068]
[1673461033519,18.73571064,1338.9,1338.4,1.08511332]
[1673461033671,18.73571064,1338.9,1338.4,2.68815602]
[1673461033880,3.79766064,1338.8,1338.4,2.68815602]
[1673461034091,8.58827198,1338.8,1338.3,0.068]
[1673461034313,27.06653784,1338.7,1338.2,0.922468]
[1673461034564,7.47104,1338.5,1338.3,1.85331409]
[1673461034719,7.47104,1338.5,1338.2,0.854468]
[1673461034930,11.26897064,1338.5,1338.2,0.854468]
[1673461035152,0.5605,1338.4,1338.2,0.854468]
[1673461035403,4.35806064,1338.5,1338.2,0.854468]
[1673461035713,5.0797667,1338.5,1338.2,0.854468]
[1673461035923,12.5509167,1338.5,1338.2,0.854468]
[1673461036138,20.0220667,1338.5,1338.2,0.854468]
[1673461036358,12.5509167,1338.5,1338.2,0.854468]
[1673461036933,5.0797667,1338.5,1338.2,0.854468]
[1673461037188,0.5604,1338.5,1338.2,0.854468]
[1673461037498,0.5604,1338.6,1338.3,1.8532928]
[1673461037716,0.5604,1338.7,1338.3,1.8532928]
[1673461038077,19.29796064,1338.7,1338.2,0.922468]
[1673461038293,19.29796064,1338.7,1338.2,0.854468]
[1673461038294,2.5,1338.6,1338.2,0.854468]
[1673461038611,14.94225,1338.5,1338.2,4.65212864]
[1673461038831,0.066,1338.6,1338.5,2.96503114]
[1673461039048,11.78393,1339.0,1338.5,10.43575114]
[1673461039286,8.04720064,1339.0,1338.5,17.97479114]
[1673461039498,0.5603,1338.9,1338.5,17.97479114]
[1673461039669,0.6262,1339.0,1338.5,17.97479114]
[1673461039871,0.5602,1339.0,1338.6,0.23]
[1673461040291,0.5602,1339.0,1338.6,7.70048]
[1673461040515,0.5602,1339.0,1338.6,0.298]
[1673461040751,58.440875,1339.0,1338.6,7.70027]
[1673461041079,57.880675,1339.0,1338.6,15.47916]
[1673461041234,57.880675,1339.0,1338.7,3.0]
[1673461041445,57.880675,1339.0,1338.6,0.298]
[1673461041699,65.349285,1339.0,1338.6,3.23]
[1673461042236,65.349285,1339.0,1338.6,10.70048]
[1673461042542,57.880675,1339.0,1338.6,18.23897]
[1673461042914,57.880675,1339.0,1338.6,25.70946]
[1673461043291,57.880675,1339.0,1338.7,3.0]
[1673461043595,57.880675,1339.0,1338.8,7.46937]
[1673461043910,57.880675,1339.0,1338.8,7.53737]
[1673461044333,61.52020313,1339.0,1338.8,0.068]
[1673461044562,76.45671313,1339.0,1338.8,0.065]
[1673461044703,83.92497313,1339.0,1338.6,3.23]
[1673461046118,0.5603,1338.9,1338.6,0.23]
[1673461046335,7.46948,1338.8,1338.5,2.96503114]
[1673461046527,7.46948,1338.8,1338.5,10.43600114]
[1673461046766,7.46948,1338.8,1338.5,10.50400114]
[1673461047197,30.01223551,1338.9,1338.5,10.50400114]
[1673461047416,33.74372615,1338.9,1338.5,10.50400114]
[1673461048466,7.53863551,1338.9,1338.5,25.44608114]
[1673461048773,72.32882313,1339.0,1338.5,25.44608114]
[1673461048935,83.52900377,1339.0,1338.5,25.44608114]
[1673461049142,3.79766064,1338.9,1338.5,3.03303114]
[1673461049384,3.79766064,1338.9,1338.5,2.96503114]
[1673461049385,22.40844,1338.8,1338.5,2.96503114]
[1673461049594,14.94061,1338.7,1338.5,2.96503114]
[1673461049828,7.47015,1338.7,1338.5,2.96503114]
[1673461050194,15.0052,1338.8,1338.5,2.96503114]
[1673461050424,0.066,1338.9,1338.5,25.37815114]
[1673461050638,7.46942,1338.8,1338.6,0.23]
[1673461050844,15.00434,1338.9,1338.6,0.23]
[1673461051056,14.93834,1338.9,1338.6,0.23]
[1673461051612,22.40758,1338.9,1338.6,0.23]
[1673461052354,29.94621551,1338.9,1338.6,0.23]
[1673461052978,3.0,1338.8,1338.5,2.96503114]
[1673461053287,22.40979,1338.7,1338.5,2.96503114]
[1673461054621,14.93986,1338.7,1338.5,2.96503114]
[1673461054958,22.40979,1338.7,1338.5,2.96503114]
[1673461055551,7.53567,1338.8,1338.5,2.96503114]
[1673461055760,17.66405662,1338.8,1338.5,10.43605114]
[1673461055971,22.96936,1338.8,1338.5,3.03303114]
[1673461056229,22.96936,1338.8,1338.5,2.96503114]
[1673461057021,22.9665963,1338.8,1338.5,2.96503114]
[1673461057549,3.0,1338.7,1338.5,2.96503114]
[1673461057803,7.47049,1338.6,1338.5,2.96503114]
[1673461058208,15.0064,1338.7,1338.5,2.96503114]
[1673461058396,22.41071,1338.7,1338.5,2.96503114]
[1673461059012,14.94038,1338.7,1338.5,2.96503114]
[1673461059648,22.41071,1338.7,1338.5,2.96503114]
[1673461060712,22.41071,1338.7,1338.5,2.91503114]
[1673461061975,29.53973064,1338.7,1338.5,2.91503114]
[1673461062415,2.0884,1338.6,1338.5,2.91503114]
[1673461062593,24.49987,1338.6,1338.5,2.91503114]
[1673461063067,28.29753064,1338.6,1338.5,2.91503114]
[1673461063662,0.5604,1338.6,1338.5,2.91503114]
[1673461063870,19.69481664,1338.6,1338.5,2.91503114]
[1673461064246,27.16530664,1338.6,1338.5,2.91503114]
[1673461065580,31.95154206,1338.6,1338.5,2.91503114]
[1673461065765,27.16530664,1338.6,1338.5,2.91503114]
[1673461066231,31.95197055,1338.6,1338.5,2.91503114]
[1673461066770,27.16530664,1338.6,1338.5,2.91503114]
[1673461067107,31.95241306,1338.6,1338.5,2.91503114]
[1673461067272,34.95241306,1338.6,1338.5,2.91503114]
[1673461067812,30.16530664,1338.6,1338.5,2.91503114]
[1673461069709,34.95328885,1338.6,1338.5,2.91503114]
[1673461070022,37.63579664,1338.6,1338.5,2.91503114]
[1673461071017,23.80878325,1338.6,1338.5,2.91503114]
[1673461071436,20.80878325,1338.6,1338.5,2.91503114]
[1673461071771,0.066,1338.7,1338.5,11.24662315]
[1673461072020,0.05,1338.7,1338.6,9.65494789]
[1673461072306,57.946675,1339.0,1338.6,11.63727732]
[1673461072522,57.946675,1339.0,1338.6,9.89573244]
[1673461072523,57.880675,1339.0,1338.6,9.89573244]
[1673461072738,65.348945,1339.0,1338.6,5.23830769]
[1673461072907,3.0,1338.9,1338.6,5.23830769]
[1673461073130,3.0,1338.9,1338.6,5.00830769]
[1673461073746,65.48531051,1339.0,1338.6,5.00830769]
[1673461074006,57.880675,1339.0,1338.6,6.10533244]
[1673461074322,72.817295,1339.0,1338.6,5.00830769]
[1673461075430,72.817295,1339.0,1338.7,1.74064552]
[1673461075431,65.348985,1339.0,1338.7,1.74064552]
[1673461075790,72.817295,1339.0,1338.7,1.74064552]
[1673461075985,57.880675,1339.0,1338.8,1.74064552]
[1673461076196,57.880675,1339.0,1338.9,2.74221732]
[1673461076415,57.880675,1339.0,1338.9,2.83657174]
[1673461076578,57.880675,1339.0,1338.9,4.48176431]
[1673461076796,57.880675,1339.0,1338.9,14.08163783]
[1673461077042,57.880675,1339.0,1338.9,31.24906415]
[1673461077270,57.880675,1339.0,1338.9,35.69381015]
[1673461077462,57.880675,1339.0,1338.9,33.43977628]
[1673461077791,57.880675,1339.0,1338.9,24.81957848]
[1673461077792,57.116775,1339.0,1338.9,24.81957848]
[1673461078100,57.116775,1339.0,1338.9,30.09767635]
[1673461078317,57.116775,1339.0,1338.9,22.62886635]
[1673461078679,32.380975,1339.0,1338.9,22.62886635]
[1673461078945,23.4419315,1339.0,1338.9,6.46176071]
[1673461079645,23.4419315,1339.0,1338.9,3.068]
[1673461079996,23.4419315,1339.0,1338.8,0.6283]
[1673461080172,23.4419315,1339.0,1338.8,2.62991059]
[1673461080380,23.4419315,1339.0,1338.9,3.0]
[1673461080592,23.4419315,1339.0,1338.9,1.53599687]
[1673461080820,23.4419315,1339.0,1338.7,11.63143372]
[1673461081157,19.49076125,1339.0,1338.9,1.09391372]
[1673461081376,19.49076125,1339.0,1338.9,2.62938065]
[1673461081521,19.49076125,1339.0,1338.9,1.71226693]
[1673461081736,19.49076125,1339.0,1338.9,29.06241047]
[1673461082058,19.49076125,1339.0,1338.9,36.01482877]
[1673461082287,19.49076125,1339.0,1338.9,36.02334243]
[1673461082500,19.49076125,1339.0,1338.9,37.1159177]
[1673461082727,19.49076125,1339.0,1338.9,34.86188383]
[1673461082883,19.49076125,1339.0,1338.9,33.76837337]
[1673461083095,19.49076125,1339.0,1338.9,32.67655454]
[1673461083674,19.49076125,1339.0,1338.9,36.02245375]
[1673461084058,19.49076125,1339.0,1338.9,40.70645375]
[1673461085095,19.49076125,1339.0,1338.9,41.7967004]
[1673461085351,19.49076125,1339.0,1338.9,40.7020877]
[1673461085748,19.49076125,1339.0,1338.9,41.7967004]
[1673461086081,19.49076125,1339.0,1338.9,42.85315725]
[1673461086082,5.55108546,1339.0,1338.9,42.85315725]